[Event "ETCC Women 2013"]
[Site "Warsaw"]
[Date "2013.11.14"]
[Round "6"]
[White "Socko, Monika"]
[Black "Gunina, Valentina"]
[Result "1-0"]
[ECO "D45"]
[WhiteElo "2431"]
[BlackElo "2509"]
[PlyCount "115"]
[EventDate "2013.??.??"]
[EventCountry "POL"]
[WhiteTeam "Poland"]
[BlackTeam "Russia"]
[WhiteTeamCountry "POL"]
[BlackTeamCountry "RUS"]
[TimeControl "40/5400+30:1800+30"]

1. c4 {[%emt 0:00:00]} e6 {[%emt 0:00:00]} 2. Nf3 {[%emt 0:00:05]} d5 {[%emt 0:
00:09]} 3. e3 {[%emt 0:01:20]} Nf6 {[%emt 0:00:50]} 4. Nc3 {[%emt 0:00:59]} c6
{[%emt 0:00:56]} 5. d4 {[%emt 0:00:06]} a6 {[%emt 0:00:21]} 6. b3 {[%emt 0:00:
22]} Bb4 {[%emt 0:00:33]} 7. Bd2 {[%emt 0:00:04]} Nbd7 {[%emt 0:00:24]} 8. Bd3
{[%emt 0:00:09]} O-O {[%emt 0:00:34]} 9. O-O {[%emt 0:00:04]} Bd6 {[%emt 0:00:
34]} 10. Qc2 {[%emt 0:00:10]} h6 {[%emt 0:00:07]} 11. Rad1 {[%emt 0:00:22]} e5
{[%emt 0:01:51]} 12. cxd5 {[%emt 0:00:57]} cxd5 {[%emt 0:00:06]} 13. e4 {[%emt
0:00:42]} dxe4 {[%emt 0:02:31]} 14. Nxe4 {[%emt 0:00:10]} Nxe4 {[%emt 0:00:06]}
15. Bxe4 {[%emt 0:00:06]} exd4 {[%emt 0:00:07]} 16. Nxd4 {[%emt 0:01:25]} Nf6 {
[%emt 0:01:33]} 17. Bf3 {[%emt 0:00:08]} Bxh2+ {[%emt 0:04:31]} 18. Kxh2 {
[%emt 0:00:04]} Qxd4 {[%emt 0:00:34]} 19. Kg1 {[%emt 0:00:14]} Qh4 {[%emt 0:05:
12]} 20. Be3 {[%emt 0:00:22]} Bg4 {[%emt 0:33:46]} 21. Rd4 {[%emt 0:17:06]}
Rac8 {[%emt 0:06:02]} 22. Qd2 {[%emt 0:04:17]} b5 {[%emt 0:14:21]} 23. Qb4 {
[%emt 0:06:48]} Rcd8 {[%emt 0:21:25]} 24. Rxg4 {[%emt 0:07:44]} Nxg4 {[%emt 0:
00:08]} 25. Qxg4 {[%emt 0:00:09]} Qf6 {[%emt 0:00:23]} 26. Rc1 {[%emt 0:02:45]}
Rfe8 {[%emt 0:00:56]} 27. Rc6 {[%emt 0:03:07]} Rd6 {[%emt 0:00:09]} 28. Rxd6 {
[%emt 0:04:26]} Qxd6 {[%emt 0:00:01]} 29. Qf5 {[%emt 0:00:51]} Qe7 {[%emt 0:02:
27]} 30. g3 {[%emt 0:01:28]} Rd8 {[%emt 0:02:57]} 31. Kg2 {[%emt 0:01:35]} Qd6
{[%emt 0:00:42]} 32. Be4 {[%emt 0:01:59]} g6 {[%emt 0:00:31]} 33. Qf4 {[%emt 0:
06:15]} Qe6 {[%emt 0:00:23]} 34. Bb7 {[%emt 0:03:19]} h5 {[%emt 0:00:43]} 35.
Bf3 {[%emt 0:01:17]} Re8 {[%emt 0:00:53]} 36. Bd4 {[%emt 0:00:37]} Rd8 {[%emt
0:00:26]} 37. Bb2 {[%emt 0:00:50]} Kh7 {[%emt 0:00:01]} 38. Qb4 {[%emt 0:04:19]
} f5 {[%emt 0:01:08]} 39. Qc3 {[%emt 0:03:25]} Qf7 {[%emt 0:00:01]} 40. Qe5 {
[%emt 0:00:00]} b4 {[%emt 0:00:00]} 41. Bc6 {[%emt 0:06:03]} g5 {[%emt 0:07:14]
} 42. Kh2 {[%emt 0:08:26]} Kg6 {[%emt 0:03:32]} 43. Bd4 {[%emt 0:04:33]} f4 {
[%emt 0:12:00]} 44. Kg2 {[%emt 0:03:14]} Kh6 {[%emt 0:07:16]} 45. gxf4 {[%emt
0:09:05]} gxf4 {[%emt 0:00:01]} 46. Kh2 {[%emt 0:00:18]} h4 {[%emt 0:01:25]}
47. Bf3 {[%emt 0:02:49]} Re8 {[%emt 0:02:19]} 48. Qd6+ {[%emt 0:01:22]} Kg5 {
[%emt 0:00:52]} 49. Qxa6 {[%emt 0:01:56]} h3 {[%emt 0:00:14]} 50. Qb5+ {[%emt
0:02:46]} Kh6 {[%emt 0:00:02]} 51. Qxb4 {[%emt 0:00:44]} Qg6 {[%emt 0:00:38]}
52. Bc3 {[%emt 0:00:44]} Kg5 {[%emt 0:00:50]} 53. Qb5+ {[%emt 0:02:31]} Kh6 {
[%emt 0:00:08]} 54. Qd7 {[%emt 0:00:45]} Re6 {[%emt 0:00:46]} 55. Bg7+ {[%emt
0:01:26]} Kh7 {[%emt 0:00:01]} 56. Bf6+ {[%emt 0:00:53]} Kh6 {[%emt 0:00:38]}
57. Qxe6 {[%emt 0:00:40]} Qf5 {[%emt 0:00:05]} 58. Bg7+ {[%emt 0:00:28]} 1-0

[Event "ETCC Women 2013"]
[Site "Warsaw"]
[Date "2013.11.14"]
[Round "6"]
[White "Srebrnic, Ana"]
[Black "Moser, Eva"]
[Result "1/2-1/2"]
[ECO "D02"]
[WhiteElo "2198"]
[BlackElo "2434"]
[PlyCount "83"]
[EventDate "2013.??.??"]
[EventCountry "POL"]
[WhiteTeam "Slovenia"]
[BlackTeam "Austria"]
[WhiteTeamCountry "SLO"]
[BlackTeamCountry "AUT"]
[TimeControl "40/5400+30:1800+30"]

1. Nf3 {[%emt 0:00:00]} d5 {[%emt 0:00:00]} 2. d4 {[%emt 0:00:45]} c5 {[%emt 0:
00:00]} 3. c4 {[%emt 0:01:10]} cxd4 {[%emt 0:00:08]} 4. Qxd4 {[%emt 0:03:09]}
Nf6 {[%emt 0:00:46]} 5. cxd5 {[%emt 0:00:30]} Qxd5 {[%emt 0:00:12]} 6. Nc3 {
[%emt 0:05:13]} Qxd4 {[%emt 0:00:20]} 7. Nxd4 {[%emt 0:00:06]} e5 {[%emt 0:00:
18]} 8. Ndb5 {[%emt 0:05:02]} Na6 {[%emt 0:00:18]} 9. g3 {[%emt 0:02:33]} Bd7 {
[%emt 0:01:22]} 10. Bg2 {[%emt 0:01:13]} Bxb5 {[%emt 0:00:15]} 11. Nxb5 {[%emt
0:00:06]} Bb4+ {[%emt 0:00:08]} 12. Nc3 {[%emt 0:05:21]} Bxc3+ {[%emt 0:00:57]}
13. bxc3 {[%emt 0:00:07]} O-O-O {[%emt 0:00:44]} 14. Rb1 {[%emt 0:22:51]} Nd5 {
[%emt 0:04:54]} 15. Bb2 {[%emt 0:03:06]} Nb6 {[%emt 0:10:19]} 16. c4 {[%emt 0:
09:59]} f6 {[%emt 0:02:53]} 17. Ba3 {[%emt 0:03:26]} Nb8 {[%emt 0:17:53]} 18.
Be7 {[%emt 0:11:05]} Rd4 {[%emt 0:15:08]} 19. c5 {[%emt 0:03:35]} Nd5 {[%emt 0:
02:25]} 20. e3 {[%emt 0:08:01]} Rb4 {[%emt 0:01:20]} 21. Bh3+ {[%emt 0:00:49]}
Kc7 {[%emt 0:13:28]} 22. Bd6+ {[%emt 0:00:29]} Kc6 {[%emt 0:00:07]} 23. Rxb4 {
[%emt 0:00:40]} Nxb4 {[%emt 0:00:11]} 24. Bg2+ {[%emt 0:00:04]} Kb5 {[%emt 0:
00:41]} 25. Bxb7 {[%emt 0:00:47]} Nxa2 {[%emt 0:10:01]} 26. O-O {[%emt 0:05:02]
} Nb4 {[%emt 0:05:29]} 27. Rb1 {[%emt 0:02:50]} a5 {[%emt 0:02:04]} 28. c6 {
[%emt 0:01:51]} N8xc6 {[%emt 0:01:59]} 29. Bxc6+ {[%emt 0:00:17]} Kxc6 {[%emt
0:00:06]} 30. Bxb4 {[%emt 0:00:03]} axb4 {[%emt 0:00:13]} 31. Rxb4 {[%emt 0:00:
04]} Ra8 {[%emt 0:01:53]} 32. Rc4+ {[%emt 0:01:24]} Kd6 {[%emt 0:00:38]} 33. e4
{[%emt 0:00:46]} Rd8 {[%emt 0:03:07]} 34. h4 {[%emt 0:00:37]} Ke6 {[%emt 0:01:
12]} 35. Rc6+ {[%emt 0:00:46]} Rd6 {[%emt 0:00:50]} 36. Rc7 {[%emt 0:00:06]}
Rd7 {[%emt 0:00:04]} 37. Rc6+ {[%emt 0:00:06]} Kf7 {[%emt 0:00:30]} 38. h5 {
[%emt 0:00:59]} g6 {[%emt 0:01:35]} 39. hxg6+ {[%emt 0:00:07]} hxg6 {[%emt 0:
00:44]} 40. Kg2 {[%emt 0:00:00]} f5 {[%emt 0:00:00]} 41. exf5 {[%emt 0:00:53]}
gxf5 {[%emt 0:01:48]} 42. Kf3 {[%emt 0:01:59]} 1/2-1/2

[Event "ETCC Women 2013"]
[Site "Warsaw"]
[Date "2013.11.14"]
[Round "6"]
[White "Stefanova, Antoaneta"]
[Black "Bojkovic, Natasa"]
[Result "1-0"]
[ECO "A14"]
[WhiteElo "2494"]
[BlackElo "2405"]
[PlyCount "83"]
[EventDate "2013.??.??"]
[EventCountry "POL"]
[WhiteTeam "Bulgaria"]
[BlackTeam "Serbia"]
[WhiteTeamCountry "BUL"]
[BlackTeamCountry "SRB"]
[TimeControl "40/5400+30:1800+30"]

1. Nf3 {[%emt 0:00:00]} Nf6 {[%emt 0:00:00]} 2. c4 {[%emt 0:00:00]} e6 {[%emt
0:00:00]} 3. g3 {[%emt 0:00:00]} d5 {[%emt 0:00:26]} 4. Bg2 {[%emt 0:00:17]}
Be7 {[%emt 0:02:38]} 5. O-O {[%emt 0:00:53]} O-O {[%emt 0:00:32]} 6. d4 {[%emt
0:00:15]} dxc4 {[%emt 0:03:35]} 7. Ne5 {[%emt 0:00:47]} Nc6 {[%emt 0:00:35]} 8.
Bxc6 {[%emt 0:00:34]} bxc6 {[%emt 0:00:04]} 9. Nxc6 {[%emt 0:00:23]} Qe8 {
[%emt 0:00:19]} 10. Nxe7+ {[%emt 0:00:06]} Qxe7 {[%emt 0:00:02]} 11. Qc2 {
[%emt 0:00:14]} e5 {[%emt 0:06:23]} 12. Rd1 {[%emt 0:01:56]} Re8 {[%emt 0:23:
08]} 13. d5 {[%emt 0:12:57]} Ba6 {[%emt 0:25:26]} 14. Na3 {[%emt 0:08:07]} Red8
{[%emt 0:08:15]} 15. Bg5 {[%emt 0:04:50]} Qb4 {[%emt 0:09:18]} 16. Bxf6 {[%emt
0:08:05]} gxf6 {[%emt 0:00:01]} 17. Qe4 {[%emt 0:03:01]} Qxb2 {[%emt 0:03:27]}
18. Nxc4 {[%emt 0:06:10]} Bxc4 {[%emt 0:07:05]} 19. Qxc4 {[%emt 0:00:06]} Qb6 {
[%emt 0:04:00]} 20. Rac1 {[%emt 0:03:32]} Rd6 {[%emt 0:01:21]} 21. Qg4+ {[%emt
0:12:59]} Kh8 {[%emt 0:00:36]} 22. Qh5 {[%emt 0:00:43]} Rd7 {[%emt 0:02:06]}
23. Qf5 {[%emt 0:10:04]} Qd6 {[%emt 0:01:15]} 24. Rd3 {[%emt 0:04:17]} Qe7 {
[%emt 0:00:13]} 25. Rc4 {[%emt 0:01:06]} Rg8 {[%emt 0:00:15]} 26. Rh4 {[%emt 0:
00:22]} Rg6 {[%emt 0:00:44]} 27. g4 {[%emt 0:00:29]} h6 {[%emt 0:00:52]} 28.
Rh5 {[%emt 0:13:25]} Kg7 {[%emt 0:00:23]} 29. Qe4 {[%emt 0:04:56]} Qc5 {[%emt
0:00:01]} 30. h4 {[%emt 0:01:57]} Qc1+ {[%emt 0:01:02]} 31. Kg2 {[%emt 0:00:18]
} Re7 {[%emt 0:00:46]} 32. Rf3 {[%emt 0:01:34]} Re8 {[%emt 0:00:22]} 33. Rhf5 {
[%emt 0:00:23]} Re7 {[%emt 0:00:45]} 34. h5 {[%emt 0:00:25]} Rg5 {[%emt 0:00:
01]} 35. Rxf6 {[%emt 0:00:06]} Qd2 {[%emt 0:00:25]} 36. Ra6 {[%emt 0:00:55]}
Rd7 {[%emt 0:00:42]} 37. Rd3 {[%emt 0:00:50]} Qb2 {[%emt 0:00:15]} 38. Kh2 {
[%emt 0:01:10]} Qa1 {[%emt 0:01:00]} 39. Rg3 {[%emt 0:00:36]} Qe1 {[%emt 0:00:
39]} 40. Qf3 {[%emt 0:00:00]} e4 {[%emt 0:00:00]} 41. Qf6+ {[%emt 0:01:30]} Kg8
{[%emt 0:02:28]} 42. Rxa7 {[%emt 0:01:47]} 1-0

[Event "ETCC Women 2013"]
[Site "Warsaw"]
[Date "2013.11.14"]
[Round "6"]
[White "Stetsko, Lanita"]
[Black "Jelica, Mara"]
[Result "1/2-1/2"]
[ECO "B60"]
[WhiteElo "2226"]
[BlackElo "2252"]
[PlyCount "78"]
[EventDate "2013.??.??"]
[EventCountry "POL"]
[WhiteTeam "Belarus"]
[BlackTeam "Croatia"]
[WhiteTeamCountry "BLR"]
[BlackTeamCountry "CRO"]
[TimeControl "40/5400+30:1800+30"]

1. e4 {[%emt 0:00:00]} c5 {[%emt 0:00:00]} 2. Nc3 {[%emt 0:00:00]} Nc6 {[%emt
0:00:00]} 3. Nf3 {[%emt 0:00:01]} d6 {[%emt 0:00:06]} 4. d4 {[%emt 0:00:43]}
cxd4 {[%emt 0:01:44]} 5. Nxd4 {[%emt 0:00:07]} Nf6 {[%emt 0:00:08]} 6. Bg5 {
[%emt 0:02:01]} Qb6 {[%emt 0:00:21]} 7. Nb3 {[%emt 0:04:59]} e6 {[%emt 0:03:09]
} 8. Be2 {[%emt 0:08:06]} a6 {[%emt 0:02:26]} 9. O-O {[%emt 0:02:10]} Be7 {
[%emt 0:00:24]} 10. Kh1 {[%emt 0:08:10]} Qc7 {[%emt 0:00:32]} 11. a4 {[%emt 0:
07:44]} b6 {[%emt 0:03:00]} 12. Be3 {[%emt 0:05:40]} O-O {[%emt 0:02:22]} 13.
f4 {[%emt 0:01:16]} Bb7 {[%emt 0:02:26]} 14. Bf3 {[%emt 0:01:44]} Rac8 {[%emt
0:01:59]} 15. Qe1 {[%emt 0:02:27]} Nd7 {[%emt 0:01:51]} 16. Qf2 {[%emt 0:01:42]
} Rfd8 {[%emt 0:05:43]} 17. Rad1 {[%emt 0:03:18]} Rb8 {[%emt 0:04:07]} 18. Bh5
{[%emt 0:09:33]} Ba8 {[%emt 0:19:44]} 19. f5 {[%emt 0:15:08]} Nf6 {[%emt 0:01:
31]} 20. fxe6 {[%emt 0:00:32]} fxe6 {[%emt 0:00:23]} 21. Be2 {[%emt 0:00:12]}
Ne5 {[%emt 0:07:23]} 22. Nd4 {[%emt 0:04:52]} Qc8 {[%emt 0:00:54]} 23. Bf4 {
[%emt 0:01:28]} Kh8 {[%emt 0:04:30]} 24. Qg3 {[%emt 0:03:56]} Ng6 {[%emt 0:17:
50]} 25. e5 {[%emt 0:02:52]} dxe5 {[%emt 0:03:17]} 26. Bxe5 {[%emt 0:00:13]}
Nxe5 {[%emt 0:00:40]} 27. Qxe5 {[%emt 0:00:08]} Rd6 {[%emt 0:05:38]} 28. Nf5 {
[%emt 0:06:52]} Rxd1 {[%emt 0:02:10]} 29. Rxd1 {[%emt 0:00:46]} Bf8 {[%emt 0:
04:45]} 30. Nd6 {[%emt 0:00:51]} Qc6 {[%emt 0:02:41]} 31. Bf3 {[%emt 0:00:42]}
Bxd6 {[%emt 0:00:45]} 32. Rxd6 {[%emt 0:00:29]} Qc4 {[%emt 0:00:30]} 33. Rd3 {
[%emt 0:02:18]} Re8 {[%emt 0:01:02]} 34. b3 {[%emt 0:01:44]} Qh4 {[%emt 0:01:
08]} 35. Bxa8 {[%emt 0:04:08]} Rxa8 {[%emt 0:00:03]} 36. Qg3 {[%emt 0:00:23]}
Qh6 {[%emt 0:00:22]} 37. Qe3 {[%emt 0:00:24]} Qh4 {[%emt 0:00:52]} 38. Qg3 {
[%emt 0:00:17]} Qh6 {[%emt 0:00:02]} 39. Qe3 {[%emt 0:00:07]} Qh4 {[%emt 0:00:
15]} 1/2-1/2

[Event "ETCC Women 2013"]
[Site "Warsaw"]
[Date "2013.11.14"]
[Round "6"]
[White "Toma, Katarzyna"]
[Black "Michna, Marta"]
[Result "1/2-1/2"]
[ECO "A46"]
[WhiteElo "2282"]
[BlackElo "2357"]
[PlyCount "61"]
[EventDate "2013.??.??"]
[EventCountry "POL"]
[WhiteTeam "Poland"]
[BlackTeam "Germany"]
[WhiteTeamCountry "POL"]
[BlackTeamCountry "GER"]
[TimeControl "40/5400+30:1800+30"]

1. d4 {[%emt 0:00:00]} e6 {[%emt 0:05:02]} 2. Nf3 {[%emt 0:00:00]} Nf6 {[%emt
0:05:42]} 3. Bg5 {[%emt 0:05:24]} h6 {[%emt 0:03:36]} 4. Bh4 {[%emt 0:00:22]}
c5 {[%emt 0:07:44]} 5. e3 {[%emt 0:12:51]} Be7 {[%emt 0:05:03]} 6. Nbd2 {[%emt
0:01:42]} cxd4 {[%emt 0:08:06]} 7. exd4 {[%emt 0:00:42]} O-O {[%emt 0:01:17]}
8. c3 {[%emt 0:00:35]} b6 {[%emt 0:00:49]} 9. Bd3 {[%emt 0:01:41]} Bb7 {[%emt
0:01:56]} 10. O-O {[%emt 0:00:09]} d6 {[%emt 0:00:34]} 11. a4 {[%emt 0:04:29]}
a6 {[%emt 0:02:20]} 12. Qe2 {[%emt 0:01:49]} Nbd7 {[%emt 0:00:16]} 13. h3 {
[%emt 0:04:12]} Nh5 {[%emt 0:04:45]} 14. Bxe7 {[%emt 0:04:22]} Qxe7 {[%emt 0:
00:10]} 15. Qe3 {[%emt 0:04:50]} Nhf6 {[%emt 0:08:41]} 16. Nc4 {[%emt 0:05:04]}
Nd5 {[%emt 0:00:42]} 17. Qd2 {[%emt 0:00:07]} N7f6 {[%emt 0:01:33]} 18. Rfe1 {
[%emt 0:02:21]} Nh5 {[%emt 0:02:56]} 19. Be4 {[%emt 0:14:36]} f5 {[%emt 0:05:
48]} 20. Bc2 {[%emt 0:01:18]} Ndf4 {[%emt 0:08:42]} 21. Qe3 {[%emt 0:09:01]}
Rf6 {[%emt 0:01:27]} 22. Kh2 {[%emt 0:06:10]} Qc7 {[%emt 0:03:51]} 23. Bb3 {
[%emt 0:02:15]} Rg6 {[%emt 0:08:01]} 24. g3 {[%emt 0:02:27]} Nd5 {[%emt 0:01:
02]} 25. Qd3 {[%emt 0:00:38]} Ndf4 {[%emt 0:03:23]} 26. Qe3 {[%emt 0:02:12]}
Nd5 {[%emt 0:00:09]} 27. Qe2 {[%emt 0:06:06]} Ndf4 {[%emt 0:00:51]} 28. Qe3 {
[%emt 0:00:31]} Nd5 {[%emt 0:00:54]} 29. Qe2 {[%emt 0:00:36]} Ndf4 {[%emt 0:00:
24]} 30. Qe3 {[%emt 0:00:20]} Nd5 {[%emt 0:01:47]} 31. Qe2 {[%emt 0:00:16]}
1/2-1/2

[Event "ETCC Women 2013"]
[Site "Warsaw"]
[Date "2013.11.14"]
[Round "6"]
[White "Umudova, Nargiz"]
[Black "Batkovskyte, Dominyka"]
[Result "1-0"]
[ECO "C13"]
[WhiteElo "2253"]
[BlackElo "2111"]
[PlyCount "71"]
[EventDate "2013.??.??"]
[EventCountry "POL"]
[WhiteTeam "Azerbaijan"]
[BlackTeam "Lithuania"]
[WhiteTeamCountry "AZE"]
[BlackTeamCountry "LTU"]
[TimeControl "40/5400+30:1800+30"]

1. e4 {[%emt 0:00:00]} e6 {[%emt 0:00:00]} 2. d4 {[%emt 0:00:00]} d5 {[%emt 0:
00:00]} 3. Nc3 {[%emt 0:00:00]} Nf6 {[%emt 0:00:00]} 4. Bg5 {[%emt 0:00:12]}
Be7 {[%emt 0:00:15]} 5. e5 {[%emt 0:00:11]} Nfd7 {[%emt 0:00:05]} 6. h4 {[%emt
0:00:22]} Bxg5 {[%emt 0:01:08]} 7. hxg5 {[%emt 0:00:06]} Qxg5 {[%emt 0:01:41]}
8. Qd3 {[%emt 0:00:12]} h6 {[%emt 0:01:12]} 9. Nh3 {[%emt 0:00:29]} Qe7 {[%emt
0:00:30]} 10. Qg3 {[%emt 0:07:35]} g6 {[%emt 0:06:46]} 11. O-O-O {[%emt 0:11:
51]} Nb6 {[%emt 0:04:01]} 12. Bd3 {[%emt 0:06:28]} Nc6 {[%emt 0:02:17]} 13. Ng5
{[%emt 0:17:46]} Nb4 {[%emt 0:12:53]} 14. a3 {[%emt 0:06:15]} Nxd3+ {[%emt 0:
02:31]} 15. Rxd3 {[%emt 0:00:23]} Bd7 {[%emt 0:44:43]} 16. Rf3 {[%emt 0:02:37]}
Rf8 {[%emt 0:02:28]} 17. Rxh6 {[%emt 0:01:27]} O-O-O {[%emt 0:00:38]} 18. Rh7 {
[%emt 0:01:35]} Be8 {[%emt 0:00:39]} 19. Rf6 {[%emt 0:05:10]} c5 {[%emt 0:07:
53]} 20. Nxe6 {[%emt 0:03:00]} cxd4 {[%emt 0:00:25]} 21. Nxf8 {[%emt 0:06:53]}
Qxf8 {[%emt 0:03:16]} 22. Ne2 {[%emt 0:02:04]} Qc5 {[%emt 0:01:37]} 23. Qg4+ {
[%emt 0:08:28]} Nd7 {[%emt 0:02:36]} 24. Rf3 {[%emt 0:03:09]} Kb8 {[%emt 0:01:
33]} 25. Qxd4 {[%emt 0:01:21]} Qb5 {[%emt 0:00:16]} 26. Re3 {[%emt 0:01:53]}
Nb6 {[%emt 0:01:07]} 27. e6 {[%emt 0:01:24]} fxe6 {[%emt 0:00:31]} 28. Rxe6 {
[%emt 0:02:05]} Bd7 {[%emt 0:01:35]} 29. Ree7 {[%emt 0:01:35]} Rc8 {[%emt 0:00:
21]} 30. Rh8 {[%emt 0:00:52]} Qc6 {[%emt 0:01:00]} 31. Rxc8+ {[%emt 0:00:40]}
Nxc8 {[%emt 0:00:23]} 32. Rg7 {[%emt 0:01:18]} Bf5 {[%emt 0:00:25]} 33. Qe5+ {
[%emt 0:01:13]} Ka8 {[%emt 0:00:11]} 34. Rc7 {[%emt 0:00:34]} Qb6 {[%emt 0:00:
49]} 35. Nd4 {[%emt 0:01:11]} Qa6 {[%emt 0:00:34]} 36. Qxf5 {[%emt 0:00:31]}
1-0

[Event "ETCC Women 2013"]
[Site "Warsaw"]
[Date "2013.11.14"]
[Round "6"]
[White "Ushenina, Anna"]
[Black "Arabidze, Meri"]
[Result "1-0"]
[ECO "E32"]
[WhiteElo "2492"]
[BlackElo "2374"]
[PlyCount "117"]
[EventDate "2013.??.??"]
[EventCountry "POL"]
[WhiteTeam "Ukraine"]
[BlackTeam "Georgia"]
[WhiteTeamCountry "UKR"]
[BlackTeamCountry "GEO"]
[TimeControl "40/5400+30:1800+30"]

1. d4 {[%emt 0:00:00]} Nf6 {[%emt 0:00:00]} 2. c4 {[%emt 0:00:00]} e6 {[%emt 0:
00:00]} 3. Nc3 {[%emt 0:00:00]} Bb4 {[%emt 0:00:00]} 4. Qc2 {[%emt 0:00:00]}
O-O {[%emt 0:00:07]} 5. Nf3 {[%emt 0:00:03]} c5 {[%emt 0:01:02]} 6. dxc5 {
[%emt 0:00:09]} Na6 {[%emt 0:00:25]} 7. g3 {[%emt 0:00:07]} Nxc5 {[%emt 0:00:
38]} 8. Bg2 {[%emt 0:00:07]} d6 {[%emt 0:00:13]} 9. O-O {[%emt 0:01:08]} Bd7 {
[%emt 0:00:18]} 10. Rd1 {[%emt 0:03:45]} Rc8 {[%emt 0:00:36]} 11. Bf4 {[%emt 0:
06:34]} e5 {[%emt 0:07:50]} 12. Be3 {[%emt 0:16:56]} Qe8 {[%emt 0:19:51]} 13.
Rac1 {[%emt 0:08:25]} Bc6 {[%emt 0:09:05]} 14. Bh3 {[%emt 0:23:36]} Rc7 {[%emt
0:12:42]} 15. Nh4 {[%emt 0:14:31]} Bxc3 {[%emt 0:08:59]} 16. Qxc3 {[%emt 0:00:
11]} Bd7 {[%emt 0:00:25]} 17. Bg2 {[%emt 0:03:27]} Bc6 {[%emt 0:13:59]} 18. Qa3
{[%emt 0:03:08]} Bxg2 {[%emt 0:02:02]} 19. Nxg2 {[%emt 0:00:02]} Rc6 {[%emt 0:
08:10]} 20. Bxc5 {[%emt 0:03:39]} dxc5 {[%emt 0:00:19]} 21. Qxa7 {[%emt 0:00:
57]} Qc8 {[%emt 0:01:08]} 22. Qa3 {[%emt 0:00:59]} Qh3 {[%emt 0:00:51]} 23. f3
{[%emt 0:07:02]} Ne8 {[%emt 0:00:33]} 24. Qe3 {[%emt 0:02:38]} b6 {[%emt 0:01:
21]} 25. Nh4 {[%emt 0:03:28]} Nc7 {[%emt 0:01:47]} 26. Qe4 {[%emt 0:00:35]} Rh6
{[%emt 0:03:10]} 27. Qg4 {[%emt 0:00:05]} Qxg4 {[%emt 0:00:09]} 28. fxg4 {
[%emt 0:00:01]} Re6 {[%emt 0:02:31]} 29. Nf5 {[%emt 0:00:40]} Na6 {[%emt 0:01:
15]} 30. Rd7 {[%emt 0:00:54]} Nb4 {[%emt 0:01:22]} 31. Ne7+ {[%emt 0:00:19]}
Kh8 {[%emt 0:00:02]} 32. a3 {[%emt 0:00:37]} Nc6 {[%emt 0:00:45]} 33. Nxc6 {
[%emt 0:00:10]} Rxc6 {[%emt 0:00:01]} 34. Rcd1 {[%emt 0:00:05]} Kg8 {[%emt 0:
02:54]} 35. Kg2 {[%emt 0:00:57]} h6 {[%emt 0:01:02]} 36. h3 {[%emt 0:01:27]}
Rb8 {[%emt 0:01:16]} 37. a4 {[%emt 0:00:27]} Ra8 {[%emt 0:00:47]} 38. b3 {
[%emt 0:00:08]} Re8 {[%emt 0:00:43]} 39. Rf1 {[%emt 0:01:14]} Rf8 {[%emt 0:00:
35]} 40. Rfd1 {[%emt 0:00:00]} Re6 {[%emt 0:00:00]} 41. R1d6 {[%emt 0:09:44]}
Rfe8 {[%emt 0:02:02]} 42. Kf3 {[%emt 0:03:03]} e4+ {[%emt 0:02:30]} 43. Ke3 {
[%emt 0:00:07]} g5 {[%emt 0:00:23]} 44. Rxe6 {[%emt 0:06:16]} Rxe6 {[%emt 0:00:
02]} 45. Ra7 {[%emt 0:00:40]} Kf8 {[%emt 0:06:31]} 46. a5 {[%emt 0:00:05]} bxa5
{[%emt 0:00:43]} 47. Rxa5 {[%emt 0:00:04]} Rc6 {[%emt 0:00:26]} 48. Kxe4 {
[%emt 0:00:50]} Re6+ {[%emt 0:00:11]} 49. Kd3 {[%emt 0:00:14]} Rd6+ {[%emt 0:
00:21]} 50. Kc3 {[%emt 0:02:54]} Re6 {[%emt 0:00:22]} 51. Rxc5 {[%emt 0:00:12]}
Re3+ {[%emt 0:00:23]} 52. Kd4 {[%emt 0:00:38]} Rxb3 {[%emt 0:02:12]} 53. e3 {
[%emt 0:00:20]} Rb2 {[%emt 0:02:07]} 54. Re5 {[%emt 0:01:54]} f6 {[%emt 0:05:
12]} 55. Re4 {[%emt 0:00:10]} Rd2+ {[%emt 0:03:11]} 56. Kc5 {[%emt 0:01:09]}
Rh2 {[%emt 0:02:35]} 57. Kd6 {[%emt 0:00:20]} Rxh3 {[%emt 0:00:16]} 58. c5 {
[%emt 0:00:03]} Rh1 {[%emt 0:00:45]} 59. c6 {[%emt 0:00:11]} 1-0

[Event "ETCC Women 2013"]
[Site "Warsaw"]
[Date "2013.11.14"]
[Round "6"]
[White "Van Weersel, Arlette"]
[Black "Kiolbasa, Oliwia"]
[Result "0-1"]
[ECO "B41"]
[WhiteElo "2180"]
[BlackElo "1982"]
[PlyCount "110"]
[EventDate "2013.??.??"]
[EventCountry "POL"]
[WhiteTeam "Netherlands"]
[BlackTeam "Poland"]
[WhiteTeamCountry "NED"]
[BlackTeamCountry "POL"]
[TimeControl "40/5400+30:1800+30"]

1. e4 {[%emt 0:00:00]} c5 {[%emt 0:00:00]} 2. Nf3 {[%emt 0:00:00]} e6 {[%emt 0:
00:00]} 3. d4 {[%emt 0:00:00]} cxd4 {[%emt 0:00:00]} 4. Nxd4 {[%emt 0:00:00]}
a6 {[%emt 0:00:00]} 5. c4 {[%emt 0:00:00]} Nf6 {[%emt 0:00:07]} 6. Nc3 {[%emt
0:00:22]} Bb4 {[%emt 0:00:16]} 7. Bd3 {[%emt 0:00:08]} Nc6 {[%emt 0:00:12]} 8.
Nc2 {[%emt 0:00:13]} Be7 {[%emt 0:01:20]} 9. O-O {[%emt 0:00:43]} O-O {[%emt 0:
01:46]} 10. Be3 {[%emt 0:01:28]} d6 {[%emt 0:05:52]} 11. f4 {[%emt 0:03:50]}
Nd7 {[%emt 0:09:06]} 12. Qf3 {[%emt 0:09:02]} Qc7 {[%emt 0:08:11]} 13. Rad1 {
[%emt 0:08:27]} Bf6 {[%emt 0:05:40]} 14. Qh3 {[%emt 0:20:18]} g6 {[%emt 0:05:
04]} 15. e5 {[%emt 0:06:38]} dxe5 {[%emt 0:07:06]} 16. Ne4 {[%emt 0:10:30]}
exf4 {[%emt 0:14:19]} 17. Rxf4 {[%emt 0:01:46]} Be7 {[%emt 0:01:01]} 18. Rff1 {
[%emt 0:15:13]} f5 {[%emt 0:08:10]} 19. Ng5 {[%emt 0:01:26]} Nf6 {[%emt 0:01:
12]} 20. Qh4 {[%emt 0:03:07]} Ne5 {[%emt 0:05:13]} 21. Be2 {[%emt 0:01:44]} Nf7
{[%emt 0:02:22]} 22. Nd4 {[%emt 0:04:57]} Nxg5 {[%emt 0:01:05]} 23. Bxg5 {
[%emt 0:00:14]} e5 {[%emt 0:01:28]} 24. Nb3 {[%emt 0:00:51]} Be6 {[%emt 0:02:
01]} 25. Kh1 {[%emt 0:02:36]} Rf7 {[%emt 0:02:06]} 26. Nd2 {[%emt 0:01:51]} Rd8
{[%emt 0:03:02]} 27. Nf3 {[%emt 0:01:29]} Rxd1 {[%emt 0:02:23]} 28. Rxd1 {
[%emt 0:00:17]} b6 {[%emt 0:10:41]} 29. b3 {[%emt 0:02:54]} Bc8 {[%emt 0:00:50]
} 30. c5 {[%emt 0:01:13]} b5 {[%emt 0:00:31]} 31. b4 {[%emt 0:00:07]} Be6 {
[%emt 0:01:13]} 32. a3 {[%emt 0:00:16]} Bb3 {[%emt 0:00:31]} 33. Re1 {[%emt 0:
00:49]} Ne4 {[%emt 0:01:23]} 34. Bxe7 {[%emt 0:00:30]} Qxe7 {[%emt 0:00:46]}
35. Qxe7 {[%emt 0:00:48]} Rxe7 {[%emt 0:00:01]} 36. Kg1 {[%emt 0:00:24]} Bd5 {
[%emt 0:02:06]} 37. Bd3 {[%emt 0:01:08]} Kg7 {[%emt 0:00:36]} 38. Bc2 {[%emt 0:
00:41]} Kf6 {[%emt 0:00:37]} 39. Rd1 {[%emt 0:01:06]} Nc3 {[%emt 0:00:26]} 40.
Rd3 {[%emt 0:00:00]} Ne2+ {[%emt 0:00:00]} 41. Kf2 {[%emt 0:03:06]} Nf4 {[%emt
0:03:40]} 42. Re3 {[%emt 0:13:20]} e4 {[%emt 0:13:40]} 43. Ne1 {[%emt 0:04:44]}
Bc4 {[%emt 0:02:53]} 44. Kg1 {[%emt 0:06:02]} Nd5 {[%emt 0:03:32]} 45. Rh3 {
[%emt 0:00:28]} Nf4 {[%emt 0:01:15]} 46. Re3 {[%emt 0:00:16]} g5 {[%emt 0:00:
23]} 47. g4 {[%emt 0:02:24]} Nd5 {[%emt 0:00:48]} 48. Rh3 {[%emt 0:00:11]} f4 {
[%emt 0:00:17]} 49. Rh6+ {[%emt 0:01:15]} Ke5 {[%emt 0:00:29]} 50. Rxa6 {[%emt
0:01:48]} f3 {[%emt 0:01:20]} 51. Ra8 {[%emt 0:02:31]} Nf4 {[%emt 0:02:00]} 52.
Bxe4 {[%emt 0:01:50]} Kxe4 {[%emt 0:00:14]} 53. Nxf3 {[%emt 0:00:46]} Kxf3 {
[%emt 0:00:06]} 54. h4 {[%emt 0:00:23]} Kg3 {[%emt 0:00:07]} 55. hxg5 {[%emt 0:
00:29]} Re1# {[%emt 0:00:07]} 0-1